Workbook

Sheet INSTRUCTIONS
A1: This QA/QC Checklist workbook has a customizable checklist that can be adjusted to show only items that the Survey PM is requiring the Survey Consultant to deliver for a particular project. It is intended that this QA/QC Checklist be included with the MDOT Request for Survey Consultant Servicesso that the Survey Consultant is aware from the beginning of the contracting process of all of the items they must deliver. There are some cases in which files or items are shown but end-up not being required. This list should greatly reduce the amount of "n/a" comments.
A8: This workbook contains multiple sheets: INSTRUCTIONS, CHECKLIST, ORD, COMMENTS and QA/QC STATEMENT. Once the checklist has been customized for your project, you can either print each sheet separately to a PDF and then combine them manually, or print the entire workbook to a PDF and manually delete the Instructions page. We are looking into a "Print" macro that will print all sheets except the Instructions sheet to one PDF.
A14: The CHECKLIST sheet contains two categories, files to be uploaded to ProjectWise and items to be included in the Survey Portfolio PDF. Each category is separated into sections. For the ProjectWise category, the heading of each section begins with PWISE- and is shaded gray. Following PWISE- is the name of the folder in ProjectWise (the first section is for files that go directly into the main project folder, not a sub-folder like the rest of the sections). For the Survey Portfolio PDF category, the heading of each section begins with SURVEY PORTFOLIO PDF- and is shaded blue. Following SURVEY PORTFOLIO PDF- is the name of the bookmark section within the PDF. To select the files and items you want included as a deliverable, simply place an "x" in that row in column "D". Once you have an "x" next to all the items you want, click the "Filter" button (cell G1) and all rows with no "x" will be hidden. To show all rows again, click the "Show All" (cell F1) button. Due to the size of some of the rows, there are often page formatting issues once the checklist is filtered. At this time, you must manually adjust the page break locations to avoid having partially filled pages. Go to the print preview and look at each page, if any page breaks need to be adjusted go back to the Checklist sheet, make sure the view is set to "Page Break Preview". Navigate to the page break that needs to be adjusted, and then click and drag the page break to the desired location. This may be an iterative process.
A29: The ORD sheet contains the QC items required for the CAD deliverables. This checklist can also be filtered, but since the fully expanded list fits all on one page, no page break formatting is required.
A32: The COMMENTS sheet provides a place for the Survey Consultant to add any comments they have for the files or items that are included in the checklists. Each item has an "Item #" which is in row "A" of the Checklist and ORD sheets. This number goes in the "Item #" column and the corresponding comment goes in the "Comment" column.
A37: The QA/QC STATEMENT contains the QA/QC Compliance Statement that is required to be signed & sealed by the QA/QC officer for the Survey Consultant. This page will typically not be modified and only needs to be included with the PDF.

Sheet CHECKLIST
B1: Michigan Department of Transportation
B2: Survey QA/QC Checklist
C5: Revision Date: | D5: 2023-10-26 | E5: Required Item
B7: Item # | C7: QA/QC Review by Consultant | D7: MDOT Survey Project Manager:________________ Consultant Firm:____________________ Consultant Project Manager:_______________ MDOT Job Number:____________________ Control Section:_______________ Design Project Manager (if sub):_________________
B9: PWISE - MAIN PROJECT FOLDER | E9: x
B10: 1 | D10: XXXXXX_MDOT_0222_20YY-MM-DD.pdf MDOT Form 222 (5/01) Survey Notes Receipt and Transmittal filled out with pertinent information and signed (e-signature is acceptable). Once all files are uploaded to ProjectWise, change state to ‘Next’ and send the auto-generated e-mail to the MDOT Survey PM. | E10: x
B11: =B10+1 -> 2 | D11: XXXXXX_Align_ROW_Portfolio_20YY-MM-DD.pdf Bookmarked Adobe PDF of of Surveyor's Alignment & ROW Report and pertinent alignment/ROW documents (See end of this document for items to be included in the portfolio): | E11: x
B12: =B11+1 -> 3 | D12: XXXXXX_Survey_Portfolio_20YY-MM-DD.pdf Bookmarked Adobe PDF of Surveyor's Project Report and pertinent administrative, control, mapping, LiDAR, structure, hydraulic and miscellaneous project documents (See end of this document for items to be included in the portfolio): | E12: x
B13: PWISE - ALIGNMENT & ROW FOLDER | E13: x
B14: =B12+1 -> 4 | D14: XXXXXX_Prop_20YY-MM-DD.doc A Microsoft Word document containing all property corners found / located in the field with the Northing, Easting, description of the corner location and monument, station and offset.The header should outline the company name, month and year of property corner location. Witnesses of individual property corners are not required. | E14: x
B15: =B14+1 -> 5 | D15: XXXXXX_Prop_20YY-MM-DD.txt Text document containing all found property/ROW monumentation in comma separated file in the following format: Point Number,Northing,Easting,Elevation,Description. | E15: x
B16: =B15+1 -> 6 | D16: XXXXXX_Images_ROW.zip Digital photos relating to ROW/property monumentation. The name of each file should relate to the property/controlling corner being photographed when possible. All files are to be saved in one zip file. | E16: x
B17: PWISE - CONTROL FOLDER | E17: x
B18: =B16+1 -> 7 | D18: XXXXXX_MDOT_Monument_monument number.doc MDOT Monument Establishment Data Sheets of all Primary Control Points established and or used as part of this project. This form is available at: http://mdotwiki.state.mi.us/design/index.php/Chapter_10_-_Deliverables
B19: =B18+1 -> 8 | D19: XXXXXX_Images_Control.zip Digital photos relating to site control. The name of each file should relate to the control point being photographed. All files are to be saved in one zip file. | E19: x
B20: =B19+1 -> 9 | D20: Total Station RAW Data RAW data pertaining to Primary and Intermediate Control | E20: x
B21: 10 | D21: GPS RAW Data RAW data pertaining to Primary and Intermediate Control | E21: x
B22: 11 | D22: GPS RINEX Data GPS RAW data pertaining to Primary and Intermediate Control converted to RINEX format | E22: x
B23: 12 | D23: MSRN RINEX Data The RINEX files for the MSRN stations used by OPUS | E23: x
B24: 13 | D24: Vertical RAW Data Electronic raw data files for all vertical control established. | E24: x
B25: PWISE - MAPPING FOLDER | E25: x
B26: =B24+1 -> 14 | D26: XXXXXX_Struc_Inventory_20YY-MM-DD.pdf Drainage structure inventory report compatible with MDOT software and correlated to the S-XXXXXX_Survey_3D_20YY-MM-DD.dgn file in .xls spreadsheet format or MISIS output report in .pdf | E26: x
B27: 15 | D27: XXXXXX_Images_Mapping.zip ZIP file of all digital photos of the structure(s) and end sections or headwalls with the name of the file being the structure number. For multiple photos of a structure, add a letter to the end starting with "A". The numbering shall match with the information in the Drainage Structure Inventory Report. All files are to be saved in one .zip file. | E27: x
B28: 16 | D28: XXXXXX_Feature_Code.txt Individual utility / drainage station and offset reports generated by feature code in the .dgn drawing. | E28: x
B29: 17 | D29: XXXXXX_Mapping_Raw.zip Electronic raw data files for all mapping to be contained in a subfolder titled “Mapping Raw” with each day being contained in a subfolder for that day. Multiple instruments per day require multiple subfolders.
B30: PWISE - STLS (STATIC TERRESTRIAL LASER SCANNING) FOLDER
B31: =B29+1 -> 18 | D31: Georeferenced Registered Proprietary Database
B32: 19 | D32: .LAS file (version 1.2 or later)
B33: 20 | D33: .POD file(s)
B34: 21 | D34: ASCII text file
B35: 22 | D35: Check that the following items are in compliance:  Adjoining scans used in DTM creation have correct required point density spacing  Scans have Min 20% overlap  Distance between scan setups are less than 500 ft.  Registration residuals between control points of adjacent scan setups  Clear overlaid photography on scan points  Scans control points traversed, Geo-referenced to correct to state plane zone, and NAVD88 datum  Scan control with unique numbering from Intermediate Control  4 control points visible in each independent scan, and meet the requirement in Appendix C-3  Ground Points are monumented in accordance with Appendix C-3-f  Correct use of Intermediate Control as described in Appendix C-3-g
B36: 23 | D36: XXXXXX_Scanning_QA_QC_20YY-MM-DD.dgn A .dgn format file contains information described as “Scanning QA/QC”. The points inside are correctly coded and are the correct feature. (is this original description from the current QA/QC sufficient?)
B37: PWISE - MTL (MOBIL TERRESTRIAL LIDAR) FOLDER
B38: =B36+1 -> 24 | D38: Point Cloud Files Provided on electronic media of an appropriate size to contain all project information without separating on more than one media. Two complete (2) copies have been provided to MDOT Lansing Survey Support Unit. A third (3rd) copy has been provided for use by the MDOT Region Surveyor or Design Engineer. (See Appendix F)
B39: 25 | D39: XXXXXX_MTL_Mission_Plan.tpm and .kml / .kmz MTL Planning files - Trajectory plan with planned target(control and validation) files in TopoDot Mission planning format, and kml/kmz format
B40: 26 | D40: XXXXXX_MTL_Survey_3D_20YY-MM-DD.dgn 3D MicroStation DGN file containing all mapping, meeting MDOT Cadd requirements
B41: 27 | D41: XXXXXX_MTL_ExTerrain_3D_20YY-MM-DD.dgn 3D MicroStation DGN triangle file containing the terrain surface triangles
B42: 28 | D42: LiDAR data has been tiled and saved as colorized .POD (Point Tools/MicroStation point cloud file) files using photo images
B43: 29 | D43: XXXXXX_POD_Tile_Index_20YY-MM-DD.dgn DGN index file showing tile layout and naming of POD files
B44: 30 | D44: LiDAR data has been tiled and submitted in .LAS/.LAZ (version 1.2 or later) format with RGB values and intensity values (File formats XYZIRGB or XYZRGBI) colorized from photo images
B45: 31 | D45: XXXXXX_LAS_Tile_Index_20YY-MM-DD.dgn DGN index file showing tile layout and naming of .LAS files
B46: 32 | D46: Photo mosaic/Images along route that support the LiDAR .POD/.LAS point cloud
B47: 33 | D47: Original unedited raw LiDAR dataset in manufacturer’s file format
B48: 34 | D48: XXXXXX_CntrltoMTL_Diff_3D_20YY-MM-DD.dgn DGN file containing mapping locations of all Control Targets, Validation Targets, GNSS Base Stations, Primary Control points, Intermediate Control points and Benchmarks used or established for the project. The points comply with MDOT features and coding. The DGN also contains values showing the XYZ differences to the corresponding point in the final LiDAR Point Cloud. File is named
B49: 35 | D49: XXXXXX_DTM_Compare.dgn and .kmz 3D MicroStation DGN and KMZ file providing the graphical representation of the resulting differences between the edited project DTM surface and the targets and validation points
B50: PWISE - INTERIM MTL FOLDER
B51: =B49+1 -> 36 | D51: Processing Trajectories, Scan Line Processing and Point Cloud Registration (Workflow of tasks done prior to data extraction/mapping tasks)
B52: 37 | D52: XXXXXX_Targets.txt Coordinate list of the Target points used for the Mobile mapping and the adjustment reports establishing these points.
B53: 38 | D53: XXXXXX_ValidationPts.txt Coordinate list of the Validation points used for the Mobile mapping and the adjustment reports establishing these points.
B54: 39 | D54: XXXXXX_PtCloud_Compare.dgn and .kmz 3D MicroStation DGN and a KMZ file providing the graphical representation of the resulting differences between the project Point Cloud dataset and the targets and validation points
B55: 40 | D55: XXXXXX_MTL_Interim_Report_20YY-MM-DD.pdf Narrative report describing the actions taken to process and refine the trajectories and the results obtained. Including, but not limited to, the following items:
B56: 41 | D56: Smooth Best Estimated Trajectory (SBET) resulting accuracies report (precision) for Trajectories
B57: 42 | D57: Describe and show any areas of the project where the data, as collected, exceeded the maximum elapsed time or distance traveled of uncorrected IMU drift due to GNSS signal loss or obstruction.
B58: 43 | D58: Total Number of all Targets/Points/Validations
B59: 44 | D59: Number of Control Targets
B60: 45 | D60: Number of Object Points (i.e. Pick Points)
B61: 46 | D61: Number of Validation Points
B62: 47 | D62: Manufacturer/software/consultant reports and printouts showing the results of the trajectory processing and refinement and accuracy level achieved
B63: 48 | D63: Manufacturer/software/consultant reports and printouts showing the results of the scan line point cloud processing, registration to control and accuracy level achieved
B64: 49 | D64: Cloud to Target registration – Statistics and comparison of how the point cloud fit to the targets
B65: 50 | D65: Comparison of elevation data between overlapping (side lap) runs and to the project validation/control elevations located in the overlap area
B66: 51 | D66: Comparison of elevation data between overlapping (cross lap) runs and to the project validation/control elevations located in the overlap area
B67: 52 | D67: Comparison of points at the area of overlap (end lap) if more than one GNSS base is used
B68: 53 | D68: Project targets and control points have been Geo-referenced to correct Michigan State Plane Zone, vertical datum (NAVD88), utilizing GEOID____
B69: 54 | D69: Project Accuracy reports of collected GNSS data as well as PDOP and SV visibility
B70: 55 | D70: Project Accuracy reports of collected IMU data
B71: 56 | D71: Project Trajectory reports including a comparison of the forward and reverse runs as well as the combined forward/reverse run
B72: 57 | D72: Comparison spreadsheet showing the differences (fit) of the resultant combined point cloud to the validation points. This spreadsheet shall include a resultant summary in NSSDA format of all the validation points (minimum of 20 required) showing the 95% difference in horizontal X and Y, and Vertical Z for the project
B73: PWISE - STRUCTURES FOLDER
B74: =B72+1 -> 58 | D74: XXXXXX_Elevation_Sketches_structure designation.pdf Sketch of both sides of structure in elevation view with the following information displayed:
B75: 59 | D75: Bridge Seat Elevations
B76: 60 | D76: Reference Point Elevations
B77: 61 | D77: Top of Footing Elevations
B78: 62 | D78: Underclearance Distances
B79: 63 | D79: Water Surface Elevation
B80: 64 | D80: Other Elevations ________________
B81: 65 | D81: Dimensions of Existing Substructure Elements
B82: 66 | D82: XXXXXX_Plan_Sketches_structure designation.pdf Sketch of structure in plan view with the following information displayed:
B83: 67 | D83: Dimensions of Existing Substructure Elements
B84: =B83+1 -> 68 | D84: Face to Face Existing Substructure Measurements
B85: 69 | D85: Reference Point Elevation, Stationing & Coordinates
B86: 70 | D86: Angle of Crossing of Existing Substructure Units with bridge Alignment
B87: 71 | D87: XXXXXX_Images_structure designation.zip ZIP file of all digital photos of the structure. If multiple structures, create a separate zip file for each.
B88: 72 | D88: S_######_BXX_Name_of_Watercourse_Culvert_Detail_Form.pdf or S_######_BXX_Name_of_Watercourse_Structure_Detail_Sketch.pdf | E88: x | F88: IF XXXXXX_Elevation_Sketches_structure designation.pdf and XXXXXX_Plan_Sketches_structure designation.pdf are selected do not use
B89: PWISE -HYDRO FOLDER
B90: =B88+1 -> 73 | D90: XXXXXX_Hydraulics_20YY-MM-DD.dgn This DGN is a COPY of the S-XXXXXX_Survey_3D_20YY-MM-DD.dgn file. All levels not pertaining to items required in the Hydraulics Survey Scope should be turned off, then use the "Save Settings" command. (Do Not Delete them from the .dgn)
B91: =B90+1 -> 74 | D91: XXXXXX_Riparian_Owners.pdf Map of the riparian owners and addresses in the four quadrants of the structure and water course
B92: 75 | D92: XXXXXX_Hydro_Chains_20YY-MM-DD.csv The HYDRO chains in specific MDOT format
B93: 76 | D93: XXXXXX_High_Pt_Chains_20YY-MM-DD.csv The HIPTC chains in specific MDOT format
B94: 77 | D94: XXXXXX_RWS_Chain_20YY-MM-DD.csv The RWS chains in specific MDOT format
B95: 78 | D95: XXXXXX_LWS_Chain_20YY-MM-DD.csv The LWS chains in specific MDOT format
B96: 79 | D96: XXXXXX_River_HYDRO - Bank Stations Table.csv The bank points of the Hydro chains csv in a specific MDOT format
B97: 80 | D97: XXXXXX_Images_Hydro_water course name.zip ZIP file of all digital photos of the water course. If multiple water courses, create a separate zip file for each.
B98: 81 | D98: XXXXXX_Hydro_ExTerrain_20YY-MM-DD.xml The 3D triangle file exported to a LandXML format, by selecting the option "Export Both" in the selection box for the Export Options, this will include the triangles and features of the surface within the LandXML file.
B99: PWISE - MISCELLANEOUS FOLDER | E99: x
B100: =B98+1 -> 82 | D100: Data not assignable to one of the other five sections may be placed here and must be discussed in the survey report. Examples of appropriate site specific information might be: newspaper articles, photos of the project site looking up and down the roadway, various aspects of a structure, etc. Photos shall be submitted in native format and annotated. All documents (excluding photos taken at time of survey) must be included in the Survey Portfolio PDF. | E100: x
B101: PWISE - PA 132 CERTIFIED SURVEYS FOLDER
B102: =B100+1 -> 83 | D102: S-XXXXXX_PA132_20YY_MM_DD.dgn This Georeferenced DGN is a composite drawing showing all the parent parcels affected by the proposed R.O.W. that will be submitted to design. All information represented needs to be in it's true geographical position.
B103: =B102+1 -> 84 | D103: CS#####_ JN######_Parcel #### Survey.dgn This Georeferenced DGN is the final Certified Survey drawing. It should only containg the drawing of the surveyed Parcel with the MDOT Certified Survey boarder. The MDOT Certified Survey boarder DGN can be downloaded from the MDOT Resources web page.
B104: =B103+1 -> 85 | D104: CS#####_JN######_Parcel #### Description.docx This Word file (docx) contains the final legal descriptions, notes and witnesses with the MDOT Certified Survey boarder. The MDOTdescription and notes Word file (docx) can be downloaded from the MDOT Resources web page.
B105: 86 | D105: CS#####_ JN######_Parcel #### Survey.pdf This is a Georeferenced PDF copy of the final signed and sealed Certified Survey (contains the drawing and legal descriptions, notes and witnesses).
B106: 87 | D106: CS#####_ JN######_Parcel #### Survey Recorded.pdf This is a PDF copy of the recorded final signed and sealed Certified Survey (containing the Liber and Page assigned by the Register of Deeds).
B107: PWISE - RID FOLDER | E107: x
B108: =B106+1 -> 88 | D108: S-XXXXXX_Survey_Info_Sheet_20YY-MM-DD.doc The header should outline the company name, month and year of point establishment, datum, geoid used, SPC zone, the formula to convert from grid to ground distances, average combined scale factor, and the horizontal and vertical control points held fixed in the adjustments. This document will list all Primary Control, Intermediate Control, Benchmarks, Photogrammetry Target points, PLSS Corners, and Alignment Points. Horizontal Control shall include Northing, Easting, Elevation, standard deviation (2 sigma) in each coordinate, point scale factor to 12 significant figures, description of the monument, station and offset and witnesses. Vertical Control shall include Northing, Easting to the nearest foot (1.0'), elevation with standard deviation (2 sigma), point scale factor to 12 significant figures, description of the monument, station and offset and witnesses. | E108: x
B109: =B108+1 -> 89 | D109: S-XXXXX_ControlPts_20YY-MM-DD.txt A comma delimited file (ASCII text) of all the points listed above in the Survey Info Sheet. The file shall be created in the following format: (Point name / number, Northing, Easting, Elevation, and Description) | E109: x
B110: 90 | D110: S-XXXXXX_Align_ROW_20YY-MM-DD.dgn and S-XXXXXX_Align_ROW_20YY-MM-DD.pdf An alignment and ROW drawing (.dgn format) with:  Station and coordinates of the POB and POE.  Alignment attributes on appropriate levels.  Alignment annotation shall be as follows: “ROADWAY + LEGAL or NON-LEGAL + (Name of alignment).”  An alignment key including the following:  Name of the Company that created the alignment  Job Number: XXXXXX, Control Section: XXXXX, XXXXX, Etc...  List of All Retraced Alignments (provided with survey deliverables):  Route Name + Legal or Non-Legal + (Name of alignment) =  Route Name,  Origin Year,  Type of Alignment "Construction Alignment, Survey Alignment, etc.",  From Project Number XXXXXX,  "as retraced for" Job Number XXXXXX,  in "Year of retracement (MM/DD/YYYY)" e.g. - M-43 LEGAL CALIL = M-43, 1954 CONSTRUCTION ALIGNMENT FROM PROJECT 82-24, AS RETRACED FOR JOB NUMBER 111659 IN 2011.  Name of Michigan Professional Surveyor responsible for new and retraced alignments provided  Note about the Type of ROW shown (Legal or Non-Legal)  Horizontal Datum: ___________________[Ex. NAD83(CORS2011) MSPC Central Zone(2112)]  Average Combined Scale Factor: 0.000000000000 (Must be to 12 decimal places)  Grid Distance/Combined Scale Factor = Ground Distance | E110: x
B111: 91 | D111: Continued Requirements for S-XXXXXX_Align_ROW_20YY-MM-DD.dgn and S-XXXXXX_Align_ROW_20YY-MM-DD.pdf  “Survey Alignment ROW Drawing Requirements" and alignment annotation requirements described in the document have been complied with to create both DGN and PDF files. (Click Icon at left for a copy of document.) Or see Chapter 4 Section 2.2.1 of the Survey Standards of Practice. https://mdotjboss.state.mi.us/SpecProv/getDocumentById.htm?docGuid=105c56b1-a778-42f2-aa93-1b32ac1e50ce&fileName=%22Survey%20Alignment%20ROW%20Drawing%20Requirements.pdf%22  Complete curve data including:  Deflection angle (RT or LT), radius, external, tangent length  PC, PI and PT stations and coordinates  Section Corner ties annotated by bearing and distance along the section line from found PLSS corners to the intersection with the alignment.  The location of the existing Right of Way  Right of Way attributes on appropriate levels.  Checked the Direction Ahead Bearing and Direction Back Bearing from the curve data to the Tangent Bearing coming in to and out of the curve data to ensure that they are the same to prevent non-tangential curves.  Alignments must be a complex element and the appropriate Bentley feature name and definition are applied.  The DGN and PDF file must be georefenced. (https://stateofmichigan.sharepoint.com/sites/MDOT-SPC-DevelopmentGuide/SitePages/Project-PDF.aspx) | E111: x
B112: 92 | D112: S-XXXXXX_Align_XML_20YY-MM-DD.xml Alignment(s) exported to a LandXML format. Note: Alignments must start on a tangent segment not on a curve segment. Curves containing delta’s of 180 degrees or greater must be broken into two curve segments. | E112: x
B113: 93 | D113: S-XXXXXX_Survey_3D_20YY-MM-DD.dgn 3D - Map of the project area generated from Open Roads Designer (ORD) | E113: x
B114: 94 | D114: S-XXXXXX_Survey_2D_20YY-MM-DD.dgn Export out a 2D Planimetric Map from the 3D Map of the project area generated from ORD | E114: x
B115: 95 | D115: S-XXXXXX_ExTerrain_20YY-MM-DD.dgn 3D triangle file [(contains triangles, clip boundary(ies) and voids (i.e. - obscured areas), of all terrain models including bridge decks] | E115: x
B116: 96 | D116: S-XXXXXX_ExTerrain_20YY-MM-DD.xml The 3D triangle file exported to a LandXML format | E116: x
B117: 97 | D117: S-XXXXXX_ExTerrain_Deck_structure designation_20YY-MM-DD.xml 3D triangle file exported to a LandXML format of each of the individual Deck terrain models. | E117: x
B118: ALIGN ROW PORTFOLIO PDF - SURVEYORS ALIGNMENT AND ROW REPORT | E118: x
B119: =B117+1 -> 98 | D119: Surveyor’s Alignment and ROW Report, Containing a complete synopsis of the alignment and ROW survey including, but not limited to: | E119: x
B120: =B119+1 -> 99 | D120: Explanation of any deviation from the Scope and/or the Standards. | E120: x
B121: 100 | D121: Provide a complete discussion of all Alignments relative to the project. Specify information and methods used to determine the location and designation of each such as accepted monumentation and documents used to support your determination. | E121: x
B122: 101 | D122: Property boundary issues addressed, with specific information that may be useful for a surveyor to retrace or an engineer during design. If necessary, include a summary of conversations with property owners and their concerns. | E122: x
B123: 102 | D123: Alignment information must be certified, signed and sealed by the Professional Surveyor as described in the Alignment section of the Standards of Practice. | E123: x
B124: 103 | D124: Research Research information used to establish alignment and ROW such as (but not limited to): ■ MDOT survey records/ ROW Maps ■ MDOT deeds/easements, ROW releases, adjacent private land owner deeds. ■ LCRCs for PLSS corners ■ Recorded/Unrecorded Plats ■ Recorded/Unrecorded Surveys ■ Tax descriptions of adjacent properties | E124: x
B125: 104 | D125: Tax Maps Mark maps with location and point numbers of the property corners located in the field. | E125: x
B126: 105 | D126: Field Notes Scanned copies of field notes pertaining to alignment and ROW work. | E126: x
B127: SURVEY PORTFOLIO PDF - ADMINISTRATIVE SECTION | E127: x
B128: =B126+1 -> 106 | D128: Vicinity Map Screen capture from Street Atlas, Google Maps, or some other resource with the POB and POE labeled | E128: x
B129: =B128+1 -> 107 | D129: Surveyor’s Project Report, divided into subsections, containing a complete synopsis of project survey including, but not limited to: | E129: x
B130: 108 | D130: Explanation of any deviation from the Scope and/or the Standards. | E130: x
B131: 109 | D131: Basis of horizontal and vertical control, with specific emphasis on datum sources used (list CORS and NAVD benchmarks tied), equipment, software, methods used to establish the coordinates and methods used to detect errors and eliminate them. If RTK is used, explain the methodology, equipment and procedure used. Include a detailed explanation relating to CORS usage or site calibration (Base Station) (for level loops, Primary and Intermediate Control networks). | E131: x
B132: 110 | D132: Indicate Geoid Model used. | E132: x
B133: 111 | D133: Statement indicating whether Precise or Rapid ephemeris has been used to process final solutions (OPUS RS can not be used). | E133: x
B134: 112 | D134: Statement indicating adherence to observation procedures per Appendix B of the current version of the Standards of Practice for use of OPUS to establish the horizontal datum. | E134: x
B135: 113 | D135: Statement indicating that OPUS elevations have not been used for determining vertical control for the project, unless approved by the Survey Project Manager. | E135: x
B136: 114 | D136: Statement indicating that for groups of control points spaced less than 1500 feet apart, the following procedures were followed: All of the points are submitted to OPUS and the baselines between the groups of points shall be calculated using conventional post processing techniques, using the OPUS derived values as a check. | E136: x
B137: 115 | D137: Statement indicating that if a mark is used in multiple lists, such as a control point and a bench mark; it shall carry the same designation in each. All lists shall include the mark name or number, description of the monument, station and offset, and coordinates. | E137: x
B138: 116 | D138: Mapping information for the project should be summarized per the Standards Of Practice dialog. | E138: x
B139: 117 | D139: Any mapping issues encountered, with specific information that may be useful for an engineer during design. | E139: x
B140: 118 | D140: Any information obtained regarding drainage issues observed or reported by local authorities or residents should be discussed | E140: x
B141: 119 | D141: Explanation of how the Reference Point locations were determined for Bridge Surveys.
B142: 120 | D142: Discuss the contents of anything that appears in the Miscellaneous section. | E142: x
B143: 121 | D143: The signed, sealed, and dated “PROFESSIONAL SURVEYOR’S CERTIFICATION FOR MDOT PROJECTS” as detailed in the Standards of Practice. | E143: x
B144: 122 | D144: MDOT Survey Project Check List This Form, completed, signed & sealed, indicating that all project related items are accounted for. | E144: x
B145: 123 | D145: QA/QC Certification Signed and sealed by the lead QA/QC person (See the Survey Standards of Practice (May 2014) Quality Assurance/Quality Control section – Page 27.) - NOTE: This is not the QA/QC statement from the QA/QC Checklist. | E145: x
B146: 124 | D146: Notice of Authorization MDOT form 5180 Acceptance of Priced Proposal & Authorization for Consultant to Proceed attached documents as received from MDOT Contract Services Division (remove Cost Derivation pages). This will include the MDOT authorization, Priced Proposal, Work Plan and the original Attachment "C". | E146: x
B147: 125 | D147: MDOT Form 5102 - Change of Scope Only required if there was an actual change of scope after initial authorization. | E147: x
B148: 126 | D148: Work Permits Required for the Project | E148: x
B149: 127 | D149: Correspondence Minutes of Meetings, phone conversations, emails and any other project related correspondence. | E149: x
B150: SURVEY PORTFOLIO PDF - CONTROL SECTION | E150: x
B151: =B149+1 -> 128 | D151: MDOT Monument Establishment Sheet All Primary Control Points established and or used as part of this project (contact Lansing survey Support Office for template). | E151: x
B152: =B151+1 -> 129 | D152: NGS Data Sheets. | E152: x
B153: 130 | D153: NGS Mark Recovery Forms. | E153: x
B154: 131 | D154: GPS v EDM Control Comparison Include a table of GPS and EDM observations for Primary Control showing: Average Combined Scale Factor, Measured GPS Grid Distance, Calculated GPS Ground Distance, Measured EDM Ground Distance and Δ Distance (GPS Ground – EDM Ground). | E154: x
B155: 132 | D155: Field Notes Scanned copies of field notes pertaining to control work. | E155: x
B156: 133 | D156: Primary Control Plot Plot(s) of the GPS network(s) from GPS software and sketch(s) or plot(s) of network or traverse with legible point numbers for Primary Control. | E156: x
B157: 134 | D157: Intermediate Control Plot Plot(s) of the GPS network(s) from GPS software and sketch(s) or plot(s) of network or traverse with legible point numbers for Intermediate Control. | E157: x
B158: 135 | D158: Reports for Primary Control horizontal adjustments including: (Check all that apply). Minimally Fully Constrained Constrained   input parameters, a-priori, centering error, etc   raw unadjusted closures   final coordinates with standard deviations (2 sigma)   vector input data and analysis.   histograms   error ellipses   traverse closures   statistical test results   horizontal and vertical datums, ellipsoid, SPC zone and units (IF)   name of the adjustment program used with version or release.  OR supply all written calculations to support the final results.  Only Non-trivial vectors used | E158: x
B159: 136 | D159: Reports for Intermediate Control horizontal adjustments including: (Check all that apply). Minimally Fully Constrained Constrained   input parameters, a-priori, centering error, etc   raw unadjusted closures   final coordinates with standard deviations (2 sigma)   vector input data and analysis   histograms   error ellipses   traverse closures   statistical test results   horizontal and vertical datums, ellipsoid, SPC zone and units (IF)   name of the adjustment program used with version or release.  OR supply all written calculations to support the final results.  Only Non-trivial vectors used | E159: x
B160: 137 | D160: OPUS Requirements Station Observation Sheets and copies of the OPUS Extended Output files. | E160: x
B161: 138 | D161: Reports for Vertical adjustments including: (Check all that apply). Minimally Fully Constrained Constrained   input parameters   raw unadjusted closures   final elevations with standard deviations (2 sigma)   loop closures   statistical test results.   horizontal and vertical datums, ellipsoid, SPC zone and units (IF)   name of the adjustment program used with version or release.  OR supply all written calculations to support the final results. | E161: x
B162: SURVEY PORTFOLIO PDF - MAPPING SECTION | E162: x
B163: =B161+1 -> 139 | D163: Research Research information related to project mapping such as (but not limited to): ■ Old MDOT plans (only include pertinent pages) ■ Aerial photos/images ■ Plans/Maps from local agencies | E163: x
B164: =B163+1 -> 140 | D164: Field Notes Scanned copies of field notes pertaining to mapping. | E164: x
B165: 141 | D165: Calculations Only relative to mapping such as temporary Control Points/Benchmarks. | E165: x
B166: SURVEY PORTFOLIO PDF - STATIC TERESTRIAL LASER SCANNING (STLS) SECTION
B167: =B165+1 -> 142 | D167: Scanning Report Must contain all of minimum requirements of Appendix C-1-b items.
B168: =B167+1 -> 143 | D168: Sketch of scanning setups and target locations
B169: 144 | D169: Scanning Control Point list
B170: 145 | D170: Registration residuals
B171: 146 | D171: QA/QC spreadsheet for check shots
B172: 147 | D172: Field Notes Scanned copies of field notes pertaining to STLS.
B173: SURVEY PORTFOLIO PDF - MOBILE TERESTRIAL LiDAR (MTL) SECTION
B174: =B172+1 -> 148 | D174: Location map Showing the MDOT project limits area, coverage of the MTL acquisition and the locations of GNSS base stations and CORS used.
B175: =B174+1 -> 149 | D175: MTL Final Report Specifically describes the Mobile LiDAR project and includes the following:
B176: 150 | D176: Final version of Interim Report developed in the Processing Trajectories, Scan Line Processing and Point Cloud Registration section prepared for the interim early delivery to MDOT - may be exact copy of original submittal OR be revised to discuss any adjustments required from the review of the interim deliverables.
B177: 151 | D177: Planning, acquisition, processing, and point cloud preparation
B178: 152 | D178: Describes, at a minimum, how the requirements of Appendix D were met
B179: 153 | D179: Describes how the MTL acquisition was controlled, whether via use of CORS (list CORS used and distances from project) or via local GNSS base station(s) (and methods used to establish) or some other method for tying the MTL to the project coordinates.
B180: 154 | D180: Describes the limits of MTL, limits of any supplemental survey mapping and how the data was merged if required for the overall project
B181: 155 | D181: Statement that LiDAR acquisition has been done when pavement is dry. If not, explain and describe weather conditions and conditions of pavement surface
B182: 156 | D182: Statement that LiDAR acquisition settings and operating speed were done in a manner to maintain accurate data and consistent data spacing throughout the project
B183: 157 | D183: Statement that LiDAR acquisition included collection of images along the trajectory routes to colorize the point cloud
B184: 158 | D184: List the number of passes completed along each corridor or per trajectory that were used to acquire point cloud data and limit resulting obscured areas: Number of Passes = _____________
B185: 159 | D185: List the percentage of side overlap of adjacent scan passes: ______________%
B186: 160 | D186: Data extracted from LiDAR point clouds have been delivered with a consistent spacing used by all operators. List average spacing between vertices when extracting line features: ___________ feet. List average spacing used in extracting spot shots (e.g. parking areas, terrain, slopes, etc.): ________ft. by ________ ft. grid.
B187: 161 | D187: PDF of Comparison spreadsheet showing the fit of the control points/targets to the final point cloud. This spreadsheet shall include a resultant summary in NSSDA format showing the 95% differences in horizontal X and Y, and Vertical Z for the project. (The TopoDOT Control points to point cloud analysis tool that outputs a spreadsheet and chart diagram is one accepted option.)
B188: 162 | D188: PDF of Comparison spreadsheet showing the differences (fit) of the final project DTM surface to the validation points. This spreadsheet shall include a resultant summary in NSSDA format showing the 95% differences in horizontal X and Y, and Vertical Z for the project
B189: 163 | D189: PDF of Comparison spreadsheet showing the differences (fit) of the final project DTM surface to the validation points. This spreadsheet shall include a resultant summary in NSSDA format showing the 95% differences in horizontal X and Y, and Vertical Z for the project.
B190: 164 | D190: Field Notes Scanned copies of field notes pertaining to MTL.
B191: SURVEY PORTFOLIO PDF - STUCTURES SECTION
B192: =B190+1 -> 165 | D192: Elevation View Sketch Insert the Elevation View Sketch of the structure(s).
B193: =B192+1 -> 166 | D193: Plan View Sketch Insert the Plan View Sketch of the structure(s).
B194: 167 | D194: MDOT Culvert Form(s) Insert the appropriate MDOT culvert form(s)
B195: 168 | D195: Field Notes Scanned copies of field notes pertaining to structures.
B196: 169 | D196: Bridge As-builts The specific pages of MDOT bridge as-built plans used to calculate reference points/lines (not entire plan set).
B197: 170 | D197: S_######_BXX_Name_of_Watercourse_Culvert_Detail_Form.pdf or S_######_BXX_Name_of_Watercourse_Structure_Detail_Sketch.pdf | F197: IF Elevation view Sketch and Plan view Sketch are selected do not use
B198: SURVEY PORTFOLIO PDF - HYDRAULICS SECTION
B199: =B197+1 -> 171 | D199: Field Notes Scanned copies of field notes pertaining to hydraulics.
B200: SURVEY PORTFOLIO PDF - MISCELLANEOUS SECTION | E200: x
B201: =B199+1 -> 172 | D201: Documents from the Miscellaneous folder. Photos taken during the project will not be inserted here. | E201: x

Sheet ORD
A1: Item # | B1: QA/QC Review by Consultant | C1: Open Roads Designer (ORD) Files | D1: Required Item | E1: PM Notes
A3: 200 | C3: The required DGN scale is: 1 inch = ___ feet | D3: x
A4: =A3+1 -> 201 | C4: The correct zone specific seed file was used and the Geographic Coordinate System Library Settings have been verified to ensure that the correct state plane coordinate zone is attached. | D4: x
A5: =A4+1 -> 202 | C5: Current MDOT workspace utilized. | D5: x
A6: 203 | C6: Only MDOT Feature Codes per the most current version of the MDOT survey codelist. | D6: x
A7: 204 | C7: Points and Chains must be stored in one fieldbook within the Survey database in ORD, or as discussed with the PM. | D7: x
A8: 205 | C8: Terrain chains are defined as "generated by point list" within ORD, with the exception of the terrain model boundary. | D8: x
A9: 206 | C9: The Control Point list coordinates have been compared to the coordinates in the DGN file. | D9: x
A10: 207 | C10: The Benchmark list elevations have been compared to the elevations in the DGN file. | D10: x
A11: 208 | C11: The Alignment Point list coordinates have been compared to the coordinates in the DGN file. | D11: x
A12: 209 | C12: The PLSS Corner list coordinates have been compared to the coordinates in the DGN file. | D12: x
A13: 210 | C13: All Survey Linear Features are edited; properly connected; patterns checked for proper direction, correctness, and aesthetics. | D13: x
A14: 211 | C14: All Survey Linear Feature crossings resolved using the ORD Report Crossing Features tool. | D14: x
A15: 212 | C15: Alignment and ROW data is not included in the 3D drawing. | D15: x
A16: 213 | C16: Hydro Survey Chains checked for correct left to right direction.
A17: 214 | C17: Hydro RWS and LWS Survey Chains checked to make sure each line is one continous linear feature with the correct code and begins at the furthest downstream end and ends at the furthest upstream end. | D17: x
A18: 215 | C18: Deck survey chain(s) for Structure(s)
A19: 216 | C19: Abutment survey chain(s) for Structure(s)
A20: 217 | C20: Wing wall survey chain(s) for Structure(s)
A21: 218 | C21: Terrain Model Road Project – EXRD, EXRD1, EXRD2, etc. for multiple model | D21: x | E21: 217 and 218 can be selected together but they should not be selected with 219
A22: 219 | C22: Terrain Model Bridge Deck - structure designation, CS12345S01, CS12345B02NB, CS12345B02SB, CS12345X02 etc. for multiple deck models as discussed with the project manager. | D22: x
A23: 220 | C23: Terrain Model Road & Bridge Deck Combined Project – EXRDDK, EXRDDK1, EXRDDK2, etc. for multiple models | E23: typically used for resurfacing projects and not reconstruction of bridge structures
A24: 221 | C24: Terrain Model Photo Mapping – EXPHO, EXPHO1, EXPHO2 | E24: future rename?
A25: 222 | C25: Terrain Model Supplemental Photo Survey – EXSUP, EXSUP1, EXSUP2 | E25: future rename?
A26: 223 | C26: Terrain Model Merged Photo / Supplemental Survey – EXMERG, EXMERG1, EXMERG2 | E26: future rename?
A27: 224 | C27: Terrain Model checked for invalid break lines and point data | D27: x
A28: 225 | C28: Terrain Model triangles checked for spikes and dips | D28: x
A29: 226 | C29: Long or invalid triangles have been obscured from Terrain Model | D29: x
A30: 227 | C30: The appriopriate Terrain Model Feature Definition applied for contours:  E_Contours -1 & 5  E_Contours -2 & 10 | D30: x
A31: 228 | C31: Bridge Deck removed from Terrain Model except when required for approach work
A32: 229 | C32: Water course removed from Terrain Model | D32: x
A33: 230 | C33: Terrain surface beneath bridge decks is included in Terrain Model Road Project | D33: x
A34: 231 | C34: Annotation Scale Enabled | D34: x
A35: 232 | C35: The DGN files have been compressed. | D35: x

Sheet COMMENTS
A1: ITEM # | B1: COMMENT

Sheet QAQC STATEMENT
B4: Yes No Scope has been reviewed to insure compliance. (Circle one) I ______________________, P.S. as lead QA/QC Surveyor in charge on this contract authorization have thoroughly reviewed the survey notes and scope of work and certify that all required and requested information has been electronically submitted to MDOT and is in compliance with the MDOT Survey Standards of Practice, the Survey Scope of Work, and this QA/QC Checklist, unless otherwise noted. Any individual check box left blank or marked N/A has been explained in the Comments following the checklist. _____________________________________ SEAL Professional Surveyor signature and date
